{"text_format":"1","workbook":"xlsx","n_sheets":4,"sheets":["Pre 2006 acquisitions","Acquisitions - post 2006","Other community assets","By land use type or by acreage"],"not_rendered":{"charts":0,"images":2,"macros":1,"external_links":0,"defined_names":8,"comments":1,"pivot_tables":0},"unopened":[],"bounds":{"document_bytes":16777216,"sheet_cells":100000,"rows_first":2000,"rows_last":500,"rows_between":2000,"halvings":0,"cell_chars":16384,"cell_head_chars":4096},"cells_cut":0,"cells_raw":0,"read":"whole","date_system":"1900"}

{"sheet":"Pre 2006 acquisitions","index":0,"n_rows":211,"n_cols":13,"rows_kept":211,"cut":false,"hidden":false,"merged":[]}
["Pre 2006 acquisitions"]
[]
["Applicant_group","HIE Area or SE region","LA area","slf_fun_apprv","hie_Fun_apprv","Land Use Type","Acreage","Year awarded","notes"]
["The Isle of Eigg Heritage Trust","Lochaber Skye and W Ross","HC","",17517,"Whole Estate",7400,1997,"Isle of Eigg"]
[]
[]
["Bhaltos Community Trust","Innse Gall","CnES","",50000,"Crofting Estate",1705,1999,"Bhaltos Estate"]
[]
[]
[]
[]
[]
["The Knoydart Foundation","Lochaber Skye and W Ross","HC","",75000,"Whole Estate",17000,1999,"Knoydart Estate"]
[]
[]
[]
[]
["Kylesku Crofters Trust","Caithness and Sutherland","HC","",18750,"Crofting Estate",600,2000,"Kylesku Estate"]
[]
[]
[]
[]
[]
[]
[]
[]
[]
[]
[]
["Culag Community Woodland Trust","Caithness and Sutherland","HC","",100000,"Whole Estate",2900,2000,"Mid-Inver Estate"]
[]
[]
[]
[]
[]
[]
[]
[]
[]
[]
[]
[]
[]
[]
[]
[]
[]
[]
["Iomairt Chillie-Choman","Argyll and the Islands","A&B",30358,7642,"Farm/Crofts",50,2001,"Land adjacent to Port Charlotte, Islay"]
[]
[]
[]
[]
[]
[]
[]
[]
[]
[]
[]
[]
[]
[]
[]
[]
[]
[]
[]
[]
[]
[]
[]
[]
[]
[]
[]
["Isle of Gigha Heritage Trust","Argyll and the Islands","A&B",3525000,500000,"Whole Estate",3407,2002,"Isle of Gigha"]
["North Harris Trust","Innse Gall","CnES",1665750,416438,"Whole Estate",55023,2002,"North Harris estate"]
[]
[]
[]
[]
[]
[]
[]
[]
[]
[]
[]
[]
[]
[]
[]
[]
[]
[]
[]
[]
[]
[]
[]
[]
[]
[]
[]
[]
[]
[]
[]
[]
["Strachur & District Community Development Company","Argyll and the Islands","A&B",23821,5955,"Farm/Crofts",10,2003,"Succoth field, Strachur, Argyll"]
[]
[]
[]
[]
[]
["Colonsay Community Development Company","Argyll and the Islands","A&B",134831,50256,"Crofting Estate",124,2004,"Various Crofts, Colonsay"]
[]
[]
[]
[]
[]
[]
[]
[]
[]
[]
[]
[]
[]
[]
[]
[]
[]
[]
[]
[]
[]
[]
[]
[]
[]
[]
[]
[]
[]
[]
[]
[]
[]
[]
[]
[]
[]
[]
["Strontian Community Steering Group","Lochaber Skye and W Ross","HC",49519,15365,"Sporting Rights",0,2005,"sporting rights Strontian River"]
["Assynt Foundation","Caithness and Sutherland","HC",1632025,605475,"Whole Estate",40000,2005,"Assynt Estate, Sutherland"]
["North Harris Trust","Innse Gall","CnES",126610,34390,"Whole Estate",7000,2005,"Loch Seaforth estate"]
[]
[]
[]
[]
[]
[]
["Urras Oighreachd Ghabhsainn (Galson Estate Trust)","Innse Gall","CnES",509882,127470,"Crofting Estate",56000,2006,"Galson Estate, Lewis"]
[]
[]
[]
[]
[]
[]
[]
[]
[]
[]
[]
[]
[]
[]
[]
[]
[]
[]
[]
[]
[]
[]
[null,"Local authorities"]
[null,"HC = Highland Council"]
[null,"CnES = Western Isles"]
[null,"SB = Scottish Borders"]
[null,"NL = North Lanarkshire"]
[null,"A&B = Argyll and Bute"]
[null,"D&G = Dumfries and Galloway"]
[null,"P&K = Perth and Kinross"]
[]
[]
[]
[null,null,null,null,null,null,null,null,null,null,null,null,"Argyll and the Islands"]
[null,null,null,null,null,null,null,null,null,null,null,null,"Caithness and Sutherland"]
[null,null,null,null,null,null,null,null,null,null,null,null,"Inner Moray Firth"]
[null,null,null,null,null,null,null,null,null,null,null,null,"Innse Gall"]
[null,null,null,null,null,null,null,null,null,null,null,null,"Lochaber Skye and W Ross"]
[null,null,null,null,null,null,null,null,null,null,null,null,"Moray "]
[null,null,null,null,null,null,null,null,null,null,null,null,"Orkney"]
[null,null,null,null,null,null,null,null,null,null,null,null,"Shetland"]
[null,null,null,null,null,null,null,null,null,null,null,null,"SE Grampian"]
[null,null,null,null,null,null,null,null,null,null,null,null,"SE East Central Scotland"]
[null,null,null,null,null,null,null,null,null,null,null,null,"SE South of Scotland"]
[null,null,null,null,null,null,null,null,null,null,null,null,"SE Tayside"]
[null,null,null,null,null,null,null,null,null,null,null,null,"SE West Central Scotland"]

{"sheet":"Acquisitions - post 2006","index":1,"n_rows":270,"n_cols":33,"rows_kept":270,"cut":false,"hidden":false,"merged":[]}
["Acquisitions post 2006 HIE-GCA-SLF2 funding"]
["Project Name","HIE Area or RoS","LA area","GCA asset acquisition contribution","SLF Acquisition contribution","HIE asset acquisition contribution","Area Office\ndevelopment contribution",null,"Land use","Acreage","awarded","Year acquired","notes"]
[]
[]
[]
["Sealladh na Beinne Moire (Community purchase of South Uist)","Innse Gall","CnES",2000000,null,1962000,0,null,"Whole estate",92000,"2006-11-01",2006,null,null,null,null,null,null,null,null,null,null,null,null,null,null,null,null,"Inner Moray Firth",null,null,null,"Crofting Estate"]
[]
[]
[]
[]
[]
[]
[]
[]
[]
[]
[]
[]
[]
[]
[]
[]
[]
[]
[]
["West Harris Crofting Trust","Innse Gall","CnES",0,null,23600,0,null,"Crofting Estate",16255,"2010-01-01",2010,"Luskentyre, Borve and Scaristavore estates"]
[]
[]
[]
[]
[]
[]
[]
[]
[]
[]
[]
[]
[]
[]
[]
[]
[]
[]
["North Harris Trust","Innse Gall","CnES",0,60330,0,0,null,"Crofting Estate",1735,"2013-09-01",2013,"Scalpay"]
["Huntly Development Trust","RoS","Aberdeenshire",0,350000,0,0,null,null,63,"2013-09-01",2013,"existing farm"]
[]
["Pairc Trust","Innse Gall","CnES",0,250000,0,null,null,"Whole estate",26775,"2013-12-01",2015,"Pairc Estate"]
[]
[]
[]
[]
[]
[]
[]
[]
[]
[]
[]
[]
[]
[]
[]
[]
[]
[]
[]
[]
[]
[]
[]
[]
[]
[]
[]
["Urras Sgire Oighreachd Bharabhais Community Company","Innse Gall","CnES",0,680000,44900,null,null,"Whole estate",34594,"2015-05-01",2016,"Barvas Estate, Lewis"]
[]
[]
[]
[]
[]
[]
[]
[]
[]
[]
["Gallan Head Community Trust ","Innse Gall","CnES",0,200000,19515,null,null,"Whole estate",80,"2015-11-01",2016,"MOD Aird Uig base and Gallan Beag house"]
["Keose Glebe Estate Ltd (Keose Glebe Steering Group)","Innse Gall","CnES",0,84075,10000,null,null,"Crofting Estate",1549,"2015-11-01",2016,"acquistion of Keose Estate"]
[]
[]
[]
[]
[]
[]
[]
[]
[]
[]
[]
[]
[]
[]
[]
[]
[]
[]
[]
[]
["Garbh Allt Community Initiative","Caithness and Sutherland","HC",0,273025,0,null,null,"Crofting Estate",3000,"2017-01-01",2018,"crofting townships of Portgower, Gartymore, West Helmsdale and Marrel."]
[]
[]
[]
[]
[]
[]
[]
[]
[]
[]
[]
[]
[]
[]
[]
[]
[]
[]
[]
[]
[]
[]
[]
[]
[]
[]
["North West Mull community Woodland Company Ltd","Argyll and the Islands","A&B",0,4351500,0,null,null,"Whole estate",4950,"2018-03-01",2018,"Ulva Estate and propertys"]
[]
[]
[]
[]
[]
[]
[]
[]
[]
[]
[]
[]
[]
[]
[]
[]
[]
[]
[]
[]
[]
[]
[]
[]
[]
[]
[]
[]
[]
[]
[]
[]
[]
[]
[]
[]
[]
[]
[]
[]
[]
[]
[]
[]
[]
[]
[]
[]
[]
[]
[]
[]
[]
[]
[]
[]
[]
[]
[]
[]
[]
[]
["Rousay, Egilsay & Wyre Development Trust","Orkney","OI",0,260000,0,null,null,"Whole estate",1710,"2018-11-01",2020,"Purchase of Trumland Estate land"]
[]
[]
[]
[]
[]
[]
[]
[]
[]
[]
[]
[]
[]
[]
[]
[]
[]
[]
[]
[]
[]
[]
[]
[]
[]
[]
[]
[]
[]
[]
[]
[]
[]
[]
[]
[]
[]
[]
[]
[]
[]
[]
[]
[]
[]
[]
[]
[]
[]
[]
[]
[]
[]
[]
[null,null,"Local authorities"]
[null,null,"ABC","Highland Council"]
[null,null,"ABDN","Inverclyde"]
[null,null,"ANG","Midlothian"]
[null,null,"A&B","Moray Council"]
[null,null,"Clacks","North Ayrshire"]
[null,null,"D&G","North Lanarkshire"]
[null,null,"DC","Orkney Islands Council"]
[null,null,"EA","Perth and Kinross"]
[null,null,"ED ","Renfrewshire"]
[null,null,"EAL","Scottish Borders Council"]
[null,null,"ER","Shetland Islands Council"]
[null,null,"Edinburgh","South Ayrshire"]
[null,null,"ES","South Lanarkshire"]
[null,null,"FAL","Stirling Council "]
[null,null,"Fife","West Dunbartonshire"]
[null,null,"Glasgow","West Lothian"]

{"sheet":"Other community assets","index":2,"n_rows":29,"n_cols":28,"rows_kept":29,"cut":false,"hidden":false,"merged":[]}
["Community Landowner","Local Authority Area","Gifted or transferred  from","Purchased from","Land use","Valuation of asset","Community Paid","Acreage","Year acquired","HIE contribution","HIE paid legal fees","notes"]
["Glendale Estate","HC",null,null,"crofting estate",null,null,22998,1908,null,null,"Glendale Estate, Skye"]
["Stornoway Trust","CnES","Lord Leverhulme",null,"Whole estate",null,null,69189,1923,null,null,"Stornoway Trust Estate"]
["Borve and Annishader Township","HC",null,null,"crofting estate",null,null,4500,1993,null,null,"Borve and Annishader Estate"]
["Assynt Crofters Trust","HC",null,null,"crofting estate",null,300000,21300,1993,50000,null,"North Lochinver Estate and  subsequently renamed North Assynt Estate"]
["Melness Crofters Trust","HC","Michael Foljambe",null,"crofting estate",null,null,10500,1996,null,null,"Melness Estate funded throgh Crofting Trusts Advisory Service"]
[]
[]
[]
[]
[]
[]
["Isle of Rum Community Trust","HC","SNH",null,"Whole estate",250000,1,271,2010,null,"y","11 domestic houses, community hall, visitor centre and tearoom, new bunkhouse, campsite, Harris lodge, boatshed, kennels and surrounding land at Kinloch",null,null,null,null,null,null,null,null,null,null,null,null,null,null,null,"Whole estate"]
[]
[]
[]
[]
[]
[]
[]
[]
[]
[]
[]
[]
[]
[]
[]
["Cabrach Trust","Moray ",null,null,"Whole estate",null,null,170,2013,null,null,"Inverharroch Farm and 170 acres of land"]

{"sheet":"By land use type or by acreage","index":3,"n_rows":67,"n_cols":10,"rows_kept":67,"cut":false,"hidden":true,"merged":[]}
["Projects by Land use type - 2001- 2006","Amenity","Crofting Estate","Development Plot","Existing Building","Farm/Crofts","Sporting Rights","Whole Estate","Woodland","Total number"]
["Argyll and the Islands",8,1,12,10,2,null,1,2,{"$f":"SUM(B2:I2)","v":36}]
["Caithness and Sutherland",1,1,2,10,null,null,2,null,{"$f":"SUM(B3:I3)","v":16}]
["Inner Moray Firth",3,null,1,4,null,null,null,4,12]
["Innse Gall",1,2,4,3,1,null,2,1,14]
["Lochaber Skye and W Ross",6,null,5,7,null,1,2,3,24]
["Moray ",3,null,1,5,null,null,null,2,11]
["Orkney",2,null,6,3,null,null,null,null,11]
["SE East Central Scotland",2,null,null,null,null,null,null,1,3]
["SE Grampian",4,null,2,1,null,null,null,4,11]
["SE South of Scotland",1,null,3,2,null,null,null,1,7]
["SE Tayside",null,null,3,5,null,null,null,2,10]
["SE West Central Scotland",1,null,null,2,null,null,null,null,3]
["Shetland",1,null,4,7,null,null,null,null,12]
["Total",{"$f":"SUM(B2:B14)","v":33},{"$f":"SUM(C2:C14)","v":4},43,59,3,1,7,20,170]
[]
[]
["Projects by acreage - 2001 - 2006","Amenity","Crofting Estate","Development Plot","Existing Building","Farm/Crofts","Sporting Rights","Whole Estate","Woodland","Total acres"]
["Argyll and the Islands",199,124,38,10,60,null,3407,1643,{"$f":"SUM(B19:I19)","v":5481}]
["Caithness and Sutherland",3,600,8,0,null,null,42900,null,{"$f":"SUM(B20:I20)","v":43511}]
["Inner Moray Firth",5,null,18,0,null,null,null,3220,3243]
["Innse Gall",0,57705,2,13,297,null,62023,1554,121594]
["Lochaber Skye and W Ross",4,null,53,0,null,0,24400,920,25377]
["Moray ",3,null,0,0,null,null,null,154,157]
["Orkney",40,null,6,8,null,null,null,null,54]
["SE East Central Scotland",0,null,null,null,null,null,null,100,100]
["SE Grampian",107,null,0,0,null,null,null,9446,9553]
["SE South of Scotland",10,null,0.2,0,null,null,null,85,95.2]
["SE Tayside",null,null,5,3,null,null,null,220,228]
["SE West Central Scotland",4,null,null,0,null,null,null,null,4]
["Shetland",1,null,4,1,null,null,null,null,{"$f":"SUM(B31:I31)","v":6}]
["Total",{"$f":"SUM(B19:B31)","v":376},{"$f":"SUM(C19:C31)","v":58429},134.19999999999999,35,357,0,132730,17342,209403.2]
[]
["Projects by Land use type -  from 2006 to date","Amenity","Crofting Estate","Development Plot","Existing Building","Farm/Crofts","Renewable Energy","Whole Estate","Woodland","Total number"]
["Argyll and the Islands",1,null,4,3,null,null,null,2,{"$f":"SUM(B35:I35)","v":10}]
["Caithness and Sutherland",null,null,null,1,null,null,null,1,{"$f":"SUM(B36:I36)","v":2}]
["Inner Moray Firth",null,null,1,null,null,null,null,1,2]
["Innse Gall",1,null,null,1,null,null,2,null,4]
["Lochaber Skye and W Ross",1,null,1,1,null,null,null,1,4]
["Moray ",null,null,null,null,null,null,null,null,0]
["Orkney",null,null,null,1,null,1,null,null,2]
["SE East Central Scotland",null,null,1,1,null,null,null,null,2]
["SE Grampian",null,null,null,1,null,null,null,null,1]
["SE South of Scotland",null,null,2,null,null,null,null,null,2]
["SE Tayside",null,null,null,null,null,null,null,null,0]
["SE West Central Scotland",null,null,null,4,null,null,null,null,4]
["Shetland",null,null,null,1,null,null,null,null,1]
["Total",{"$f":"SUM(B35:B47)","v":3},0,9,14,0,1,2,5,34]
[]
["Projects by acreage - \nfrom 2006 to date","Amenity","Crofting Estate","Development Plot","Existing Building","Farm/Crofts","Renewable Energy","Whole Estate","Woodland","Total acres"]
["Argyll and the Islands",4,null,9.5,null,null,null,null,707,{"$f":"SUM(B51:I51)","v":720.5}]
["Caithness and Sutherland",null,null,null,null,null,null,null,100,{"$f":"SUM(B52:I52)","v":100}]
["Inner Moray Firth",null,null,0.25,null,null,null,null,163,163.25]
["Innse Gall",74,null,null,null,null,null,108255,null,108329]
["Lochaber Skye and W Ross",null,null,0.5,null,null,null,null,1087,1087.5]
["Moray ",null,null,null,null,null,null,null,null,0]
["Orkney",null,null,null,0.22,null,null,null,null,0.22]
["SE East Central Scotland",null,null,3.8,null,null,null,null,null,3.8]
["SE Grampian",null,null,null,null,null,null,null,null,0]
["SE South of Scotland",null,null,null,null,null,null,null,null,0]
["SE Tayside",null,null,null,null,null,null,null,null,0]
["SE West Central Scotland",null,null,null,2.4,null,null,null,null,2.4]
["Shetland",null,null,null,null,null,null,null,null,{"$f":"SUM(B63:I63)","v":0}]
["Total",{"$f":"SUM(B51:B63)","v":78},0,14.05,2.62,0,0,108255,2057,110406.67]
[]
[]
["last update 8.8.12"]